Cogmind - Beta 15 @@@ ROGUE MODE // 2025.06.30 @ 18:10:56 Player: Dakune Result: Destroyed by as-19992 with Assembled Heavy Rifle Performance ------------- Evolutions (1) 500 Regions Visited (4) 800 Robots Destroyed (29) 145 Value Destroyed (742) 742 Prototype IDs (4) 80 Alien Tech Used (0) 0 Bonus (33) 33 TOTAL SCORE: 2300 Bonus ------- Follower Combat Kills 33 Cogmind --------- Core Integrity 0/400 Matter 168/300 Energy 100/100 System Corruption 14% Temperature Cool (66) Movement Core (1350) Ox26 Location -9/Mines Parts ------- > --- POWER (1) -------- (None) > --- PROPULSION (2) --- (None) > --- UTILITY (4) ------ Huge Storage Unit Hacking Suite > --- WEAPON (2) ------- (None) > --- INVENTORY (25) --- Improved Terrain Scanner ECM Suite Hardened Light Armor Plating Shield Generator Shield Generator Hacking Suite Peak State ------------ > --- POWER ------------ Nuclear Core > --- PROPULSION ------- Light Treads Light Treads > --- UTILITY ---------- ECM Suite Hacking Suite Hacking Suite Authchip [Storage] > --- WEAPON ----------- Heavy Assault Rifle Improved Assault Rifle > --- INVENTORY -------- Improved Ion Engine Hardened Light Armor Plating Shield Generator Shield Generator Hacking Suite [Rating: 22] Favorites ----------- Power Nuclear Core Engine Light Ion Engine Power Core Nuclear Core Propulsion Light Treads Treads Light Treads Wheel Wheel Hover Unit Improved Hover Unit Flight Unit Flight Unit Utility Hacking Suite Device ECM Suite Storage Huge Storage Unit Processor Improved Targeting Computer Hackware Hacking Suite Protection Light Armor Plating Weapon Heavy Assault Rifle Energy Gun Small Laser Energy Cannon Particle Cannon Ballistic Gun Heavy Assault Rifle Special Melee Weapon Datajack Build | -11 -10 -10 -9 -9 ------- Run | Yrd Mat Min Mat Min Slots Evolved 2 | . . . 2 . Power . | . . . . . Propulsion . | . . . . . Utility 2 | . . . 2 . Weapon . | . . . . . Parts Attached 32 | 6 4 2 20 . Power 4 | 1 . . 3 . Engine 3 | 1 . . 2 . Core 1 | . . . 1 . Reactor . | . . . . . Propulsion 9 | 2 2 . 5 . Treads 3 | . . . 3 . Leg . | . . . . . Wheel 2 | 2 . . . . Hover 2 | . . . 2 . Flight 2 | . 2 . . . Utility 10 | 1 . 2 7 . Device 2 | . . 1 1 . Storage 2 | 1 . . 1 . Processor 1 | . . . 1 . Hackware 4 | . . 1 3 . Protection 1 | . . . 1 . Artifact . | . . . . . Weapon 9 | 2 2 . 5 . Energy Gun 3 | 1 1 . 1 . Energy Cannon 1 | . . . 1 . Ballistic Gun 4 | 1 . . 3 . Ballistic Cannon . | . . . . . Launcher . | . . . . . Special Weapon . | . . . . . Impact Weapon . | . . . . . Slashing Weapon . | . . . . . Piercing Weapon . | . . . . . Special Melee Weapon 1 | . 1 . . . Unidentified Prototypes 1 | . . . 1 . Parts Lost 16 | . 2 . 7 7 Power 2 | . . . 1 1 Propulsion 6 | . 2 . 2 2 Utility 4 | . . . 2 2 Weapon 4 | . . . 2 2 Highest Loss Streak 7 | . 2 . 3 7 To Critical Strikes . | . . . . . Average Backups 4 | . . 2 5 6 Power . | . . . . . Propulsion . | . . . . . Utility 3 | . . 1 4 6 Weapon . | . . . . . Tool/Special . | . . . . . Unused Backups 5 | . . . . 5 Power . | . . . . . Propulsion . | . . . . . Utility 5 | . . . . 5 Weapon . | . . . . . Tool/Special . | . . . . . Average Slot Usage (%) 93 | . 81 85 95 96 Engine 6 | . 14 14 4 . Core 4 | . . . 5 11 Treads 12 | . . . 15 18 Wheel 2 | . 21 . . . Hover 1 | . . . 2 . Flight 5 | . 4 28 3 . Device 4 | . . 7 5 . Storage 5 | . 12 . 5 11 Processor 2 | . . . 2 . Hackware 22 | . . 7 26 33 Energy Gun 4 | . 12 14 2 . Energy Cannon 1 | . . . 1 . Ballistic Gun 17 | . 14 14 18 22 Peak Build Rating 22 | 6 6 10 22 22 Average Rating 16 | 3 5 7 19 20 On Entrance 8 | . 6 5 10 22 Naked Turns . | . . . . . Heaviest Build 93 | 11 11 8 93 93 Greatest Support 40 | 26 26 8 40 40 Greatest Overweight (x) 3 | . 3 . 3 2 Average Overweight (x) . | . . . . 2 Largest Inventory Capacity 25 | 8 8 5 25 25 Average Capacity 13 | 6 7 5 15 25 Most Carried 6 | 5 4 4 6 6 Average Carried 4 | . . 2 5 6 Final Capacity 25 | 8 5 5 25 25 Final Carried 6 | . 2 2 6 6 Class Distribution -------------------- 47% | Hacker-Mutant 42% | Mutant 10% | Scavenger-Mutant Dominant Class ---------------- Mutant | -10/Materials Mutant | -10/Mines Hacker-Mutant | -9/Materials Hacker-Mutant | -9/Mines Resources | -11 -10 -10 -9 -9 ----------- Run | Yrd Mat Min Mat Min Matter Collected 662 | 180 123 52 307 . Remotely . | . . . . . Salvage Created 930 | . 165 . 765 . Parts 65 | . 11 . 54 . Haulers Intercepted . | . . . . . Recyclers Shooed . | . . . . . Parts Field Recycled . | . . . . . Retrieved Matter . | . . . . . Parts Self-Destructed . | . . . . . Prevented . | . . . . . Kills | -11 -10 -10 -9 -9 ------- Run | Yrd Mat Min Mat Min Combat Hostiles Destroyed 27 | . 5 . 22 . Guns 21 | . 5 . 16 . Cannons 6 | . . . 6 . Classes Destroyed 4 | . 2 . 2 . Watcher 2 | . . . 2 . Swarmer 13 | . 3 . 10 . Grunt 9 | . 2 . 7 . Sentry 5 | . . . 5 . Best Kill Streak 3 | . 3 . 3 . Combat Bots Only 3 | . 3 . 3 . Max Kills in Single Turn 2 | . 1 . 2 . Gunslinging 1 | . . . 1 . Exploded . | . . . . . Melee . | . . . . . Uniques/NPCs Destroyed . | . . . . . Combat | -11 -10 -10 -9 -9 -------- Run | Yrd Mat Min Mat Min Hostile Shots Fired 192 | . 37 . 111 44 Missed 67 | . 12 . 43 12 Hits 125 | . 25 . 68 32 Melee 17 | . . . . 17 Projectile 108 | . 25 . 68 15 Critical Strikes 5 | . . . 3 2 Part Disruptions 2 | . . . . 2 Damage Taken 1772 | . 215 . 855 702 Core 473 | . 73 . 188 212 Absorbed by Shields . | . . . . . Core Remaining (%) 85 | 100 . 70 . . Volleys Fired 86 | . 15 . 66 5 Largest 2 | . 2 . 2 2 Hottest 91 | . 60 . 91 46 Shots Fired 159 | . 29 . 124 6 Gun 129 | . 29 . 94 6 Cannon 30 | . . . 30 . Launcher . | . . . . . Special . | . . . . . Kinetic 90 | . 15 . 69 6 Thermal 48 | . 14 . 34 . Explosive . | . . . . . Electromagnetic 21 | . . . 21 . Robot Hit Streak 15 | . 15 . 6 3 Robot Miss Streak 5 | . 4 . 5 2 Penetration Max . | . . . . . Secondary Targets 3 | . . . 3 . Max Gunslinging Chain 1 | . . . 1 . Shots Hit Robots 100 | . 22 . 75 3 Core Hits 45 | . 9 . 34 2 Critical Kills . | . . . . . Critical Parts Destroyed . | . . . . . Critical Strikes . | . . . . . Melee Attacks 4 | . 4 . . . Impact . | . . . . . Slashing . | . . . . . Piercing . | . . . . . Sneak Attacks . | . . . . . Combat Hostiles . | . . . . . Follow-up Attacks . | . . . . . Damage Inflicted 1499 | . 230 . 1191 78 Guns 1048 | . 230 . 740 78 Cannons 433 | . . . 433 . Explosions . | . . . . . Melee . | . . . . . Ramming 18 | . . . 18 . Kinetic 747 | . 123 . 546 78 Thermal 552 | . 107 . 445 . Explosive . | . . . . . Electromagnetic 182 | . . . 182 . Impact . | . . . . . Slashing . | . . . . . Piercing . | . . . . . Highest Corruption 14 | . 2 2 . 14 Average Corruption 2 | . 2 2 . 9 Corruption Purged . | . . . . . Corruption Blocked . | . . . . . Effects 3 | . . 2 . 1 Matter Fused 2 | . . 1 . 1 Data Loss (minor) 1 | . . 1 . . Overload Shots . | . . . . . Overflow Damage 2 | . . . 2 . Projectiles 2 | . . . 2 . Explosions . | . . . . . Melee . | . . . . . Knockbacks . | . . . . . Impact . | . . . . . Kinetic . | . . . . . Secondary . | . . . . . Self-Inflicted Damage 2 | . . . 2 . Shots . | . . . . . Rammed 3 | . . . 3 . Targets Rammed 3 | . . . 3 . Kicked . | . . . . . Crushed . | . . . . . Highest Temperature 195 | . 44 . 195 122 Average Temperature 46 | . 25 . 46 76 Received Heat Transfer 616 | . 30 . 366 220 Siege Activations . | . . . . . Martial Activations . | . . . . . Shielding Activations . | . . . . . Robots Disrupted . | . . . . . Combat Hostiles . | . . . . . Robots Corrupted . | . . . . . Combat Hostiles . | . . . . . Parts Fried . | . . . . . Impact Corruptions . | . . . . . Robots Melted . | . . . . . Combat Hostiles . | . . . . . Parts Melted 2 | . . . 2 . Heat Transferred 1052 | . 250 . 802 . Parts Sabotaged . | . . . . . Parts Stolen . | . . . . . Parts Stripped . | . . . . . Power Chain Reactions . | . . . . . Alert | -11 -10 -10 -9 -9 ------- Run | Yrd Mat Min Mat Min Maximum Alert Level 1 | . . . 1 . Low Security (%) 80 | 100 100 100 75 100 Level 1 19 | . . . 24 . Level 2 . | . . . . . Level 3 . | . . . . . Level 4 . | . . . . . Level 5 . | . . . . . High Security . | . . . . . Max Security . | . . . . . Peak Influence 254 | . 61 15 254 26 Initial 26 | . . 15 . 26 Average 112 | . 20 2 138 20 Influence Increases 919 | . 131 . 788 . Destroy 0b10 Robot/C 580 | . 100 . 480 . Destroy 0b10 Robot/NC 20 | . 5 . 15 . Destroy Leader 154 | . 20 . 134 . Allied During Kill 3 | . . . 3 . Successful Hack 10 | . 5 . 5 . Disable Machine 15 | . . . 15 . Destroy Structure 2 | . 1 . 1 . Partial Spotted 75 | . . . 75 . Lose Combat Pursuer 60 | . . . 60 . Influence Decreases 919 | . 90 41 720 68 Entered New Map 68 | . . 26 . 42 Time Decay 710 | . 75 15 610 10 Lost Part 101 | . 15 . 70 16 Lost Ally 40 | . . . 40 . Squads Dispatched 1 | . . . 1 . Investigation . | . . . . . Extermination . | . . . . . Reinforcement 1 | . . . 1 . Assault . | . . . . . Garrison . | . . . . . Intercept . | . . . . . Searches Triggered . | . . . . . Construction Impeded . | . . . . . Haulers Reinforced . | . . . . . Active Scanning Responses . | . . . . . Cargo Convoy Interrupts . | . . . . . Stealth | -11 -10 -10 -9 -9 --------- Run | Yrd Mat Min Mat Min Distress Signals 2 | . . . 2 . Communications Jammed . | . . . . . Distress Signals . | . . . . . Times Spotted 60 | . 8 . 33 19 Peak Tracking Total 20 | . 4 . 4 20 Tactical Retreats 4 | . . . 4 . Traps | -11 -10 -10 -9 -9 ------- Run | Yrd Mat Min Mat Min Traps Triggered 1 | . 1 . . . Indirectly . | . . . . . Trap Hack Attempts . | . . . . . Triggered . | . . . . . Disarmed . | . . . . . Reprogrammed . | . . . . . Reused . | . . . . . Traps Extracted . | . . . . . Installed . | . . . . . Triggered . | . . . . . Machines | -11 -10 -10 -9 -9 ---------- Run | Yrd Mat Min Mat Min Machines Disabled 1 | . . . 1 . Max in Single Turn 1 | . . . 1 . Machines Repaired . | . . . . . Machines Dismantled . | . . . . . Machines Sabotaged . | . . . . . Overloaded Fab Kills . | . . . . . Hacking | -11 -10 -10 -9 -9 --------- Run | Yrd Mat Min Mat Min Machines Accessed 9 | . 3 . 6 . Terminals 7 | . 3 . 4 . Fabricators . | . . . . . Repair Stations . | . . . . . Recycling Units 2 | . . . 2 . Scanalyzers . | . . . . . Garrison Access . | . . . . . Total Hacks 14 | . 4 . 10 . Successful 7 | . 3 . 4 . Failed 7 | . 1 . 6 . Catastrophic 1 | . . . 1 . Database Lockouts . | . . . . . Manual . | . . . . . Terminals 12 | . 4 . 8 . Fabricators . | . . . . . Repair Stations . | . . . . . Recycling Units 2 | . . . 2 . Scanalyzers . | . . . . . Garrison Access . | . . . . . Terminal Hacks 5 | . 3 . 2 . Record 1 | . . . 1 . Robot Analysis 1 | . 1 . . . Prototype ID Bank 2 | . 2 . . . Hauler Manifests 1 | . . . 1 . Fabricator Hacks . | . . . . . Repair Station Hacks . | . . . . . Recycling Unit Hacks 2 | . . . 2 . Report Inventory 2 | . . . 2 . Scanalyzer . | . . . . . Garrison Access Hacks . | . . . . . Unauthorized Hacks . | . . . . . Terminals . | . . . . . Fabricators . | . . . . . Repair Stations . | . . . . . Recycling Units . | . . . . . Scanalyzers . | . . . . . Garrison Access . | . . . . . Data Cores Recovered 1 | . . . 1 . Used . | . . . . . Hacking Detections 4 | . 1 . 3 . Full Trace Events . | . . . . . Feedback Events . | . . . . . Feedback Blocked . | . . . . . Robot Schematics Acquired . | . . . . . Robots Built . | . . . . . Authchips . | . . . . . Time . | . . . . . Total Robot Build Rating . | . . . . . Part Schematics Acquired . | . . . . . Parts Built . | . . . . . Authchips . | . . . . . Time . | . . . . . Total Part Build Rating . | . . . . . Parts Repaired . | . . . . . Time . | . . . . . Parts Recycled . | . . . . . Recycled Matter . | . . . . . Retrieved Matter . | . . . . . Retrieved Components . | . . . . . Parts Scanalyzed . | . . . . . Part Schematics Acquired . | . . . . . Parts Damaged . | . . . . . Bothacking | -11 -10 -10 -9 -9 ------------ Run | Yrd Mat Min Mat Min Used RIF Installer . | . . . . . Robots Hacked 1 | . 1 . . . Non-combat . | . . . . . Combat 1 | . 1 . . . Robot Hacks Applied 1 | . 1 . . . parse_system 1 | . 1 . . . Relay Couplers Released . | . . . . . Fabnet Peak Effective % . | . . . . . Robots Rewired . | . . . . . Allies Hacked . | . . . . . Hacks Repelled . | . . . . . Allies | -11 -10 -10 -9 -9 -------- Run | Yrd Mat Min Mat Min Total Allies 3 | . . 3 . . Largest Group 3 | . . 3 3 . Highest-Rated Group 40 | . . 40 40 . Highest-Rated Ally 16 | . . 16 16 . Total Orders 6 | . . 6 . . STAY 3 | . . 3 . . FOLLOW 3 | . . 3 . . Ally Attacks 25 | . . . 25 . Total Damage 307 | . . . 307 . Kills 4 | . . . 4 . Allies Corrupted . | . . . . . Allies Melted . | . . . . . Intel | -11 -10 -10 -9 -9 ------- Run | Yrd Mat Min Mat Min Active Infowar (turns) 816 | . . 101 715 . ECM 816 | . . 101 715 . Robot Analysis Total 1 | . 1 . . . Derelict Logs Recovered 1 | . . 1 . . Drone Launches . | . . . . . Drone Recoveries . | . . . . . Exploration | -11 -10 -10 -9 -9 ------------- Run | Yrd Mat Min Mat Min Turns Passed 2594 | 72 239 191 2067 25 Spaces Moved 1947 | 60 224 467 1192 4 Core 15 | 10 2 . 3 . Treads 402 | . . . 398 4 Legs . | . . . . . Wheels 211 | 50 161 . . . Hover 206 | . . . 206 . Flight 1113 | . 61 467 585 . Fastest Speed 37 | 50 37 37 37 320 Average Speed 86 | 83 76 37 106 320 Slowest Speed 320 | 90 200 37 320 320 Overloaded Moves . | . . . . . Propulsion Burnouts . | . . . . . Robots Hopped 7 | . 1 2 4 . Potential Cave-ins . | . . . . . Cave-ins Triggered . | . . . . . Exploration Rate (%) 41 | 4 42 78 77 6 Regions Visited 4 Branch Regions 2 Pre-discovered Areas 1 | . . 1 . . Known Exits Taken . | . . . . . Unknown Exits Taken 4 | 1 1 1 1 . Scrap Searched 1 | . . 1 . . Spaces Dug . | . . . . . Terrain Destroyed . | . . . . . Melee . | . . . . . Projectile . | . . . . . AOE . | . . . . . Terrain Rammed . | . . . . . Walls Destroyed . | . . . . . Machines Disabled . | . . . . . Actions | -11 -10 -10 -9 -9 --------- Run | Yrd Mat Min Mat Min Total 2692 | 81 259 482 1860 10 Wait 560 | 10 1 14 534 1 Move 1929 | 59 221 462 1183 4 Hop 7 | . 1 2 4 . Pick Up 41 | 6 5 2 28 . Fast Attach . | . . . . . Attach 28 | 6 4 2 16 . Detach 5 | . 3 . 2 . Swap 11 | . 2 . 9 . Drop 17 | . 2 . 15 . Fire 86 | . 15 . 66 5 Melee 4 | . 4 . . . Ram 1 | . . . 1 . Kick . | . . . . . Crush 2 | . . . 2 . Escape Stasis . | . . . . . Rewire 1 | . 1 . . . Trap . | . . . . . Miscellaneous . | . . . . . Route ------- -11/Scrapyard -10/Materials -10/Mines (discovered 3 exits: *Mat x2 / [*Sub]) -9/Materials (discovered 5 exits: [*Mat x2] / [*Min] / [*Sto x2]) -9/Mines History --------- Turn | Location | Event 12 | -11/Scrapyard | Discovered new exit (range 16) 73 | -11/Scrapyard | Entered Materials 306 | -10/Materials | Discovered new exit (range 9) 310 | -10/Materials | Build established: Mutant 312 | -10/Materials | Entered Mines 336 | -10/Mines | Learned Materials trap positions 338 | -10/Mines | Learned location of Storage (-9) 348 | -10/Mines | Discovered new exit (range 12) 405 | -10/Mines | Excavation squad dispatched 405 | -10/Mines | A large section of the Mines collapsed 410 | -10/Mines | Discovered new exit (range 9) 443 | -10/Mines | Discovered new exit (range 8) 452 | -10/Mines | Assisted by bots powering up and referring to "LRC-V3" 503 | -10/Mines | Entered Materials 503 | -9/Materials | Accompanied by 3 allies 503 | -9/Materials | Evolved 2 slots: Utility x2 504 | -9/Materials | Loaded intel: 11 trap records 584 | -9/Materials | Discovered new exit (range 2) 651 | -9/Materials | Discovered new exit (range 10) 804 | -9/Materials | Discovered new exit (range 12) 1106 | -9/Materials | Lost 3 parts (1p1n1w) 1299 | -9/Materials | Discovered new exit (range 16) 1672 | -9/Materials | Build established: Hacker-Mutant 2496 | -9/Materials | Discovered new exit (range 7) 2570 | -9/Materials | Entered Mines 2571 | -9/Mines | Assembled infested the area 2576 | -9/Mines | Assisted by a Guerilla fighting off Assembled 2588 | -9/Mines | Core integrity fell below 50% 2593 | -9/Mines | Core integrity fell below 20% 2595 | -9/Mines | System corruption reached 10% 2595 | -9/Mines | Destroyed by as-19992 with Assembled Heavy Rifle Last Messages --------------- 02587_ as-62139 destroyed. 02589_ Lgt. Treads destroyed. 02589_ Critical hit (Burn: +80). 02590_ Nuclear Core destroyed. 02590_ HV Slug penetrates as-59077. 02590_ HV Slug penetrates as-19411. 02590_ as-55773 suffers critical hit (Destroy). 02592_ Imp. Assault Rifle destroyed. 02593_ Hacking Suite destroyed. 02593_ System corrupted by crushing effect (+5). 02593_ Lgt. Treads destroyed. 02593_ HV Slug penetrates Wall. 02593_ Matter Pump disabled. 02594_ Hvy. Assault Rifle destroyed. 02594_ Authchip [Storage] destroyed. 02594_ System corrupted by crushing effect (+4). 02594_ System corrupted by crushing effect (+5). 02594_ Knocked back. [Achievement: System Compromised] 02595_ System corrupted: Matter fused (-10). Map ----- +----------------------------------------------------+ | ???????????????????????????????????? | | ???????????????????????????????????? | | ???????????????????????????????????? | | ???????????????????????????????????? | | ???????????????????????????????????? | | ???????????????????????????????????? | | ???????????????????????????????????? | | ???????????????????????????????????? | | ???????????????????????????????????? | | ???????????????????????????????????? | | ???????????????????????????????????? | | ???????????????????????????????????? | | ???????????????????????????????????? | | ???????????????????????????????????? | | ???????????????????????????????????? | | ???????????????????????????????????? | | ???????????????????????????????????? | | ???????????????????????????????????? | | ??????????????##???????????????????? | | ????????????? ####????????????????? | | ????????????? ##???????????????? | | ????????????? #???????????????? | | ????????????# #???????????????? | | ??????###### #????????????????? | | ?????## h#?????????????????? | | ?????# a@a #?????????????????? | | ?????# a a a #?????????????????? | | ?????# aaaa ##?????????????????? | | ?????## % % ##??????????????????? | | ??????## aa% ##???????????????????? | | ???????#; a #????????????????????? | | ???????## ""%a#????????????????????? | | ????????; """a #???????????????????? | | ????????#a"""a #??????????????????? | | ????????; #?????????????????? | | ????????## #;# ##?????????????????? | | ?????????# #####??????????????????? | | ?????????# #??????????????????????? | | ?????????? ???????????????????????? | | ???????????????????????????????????? | | ???????????????????????????????????? | | ???????????????????????????????????? | | ???????????????????????????????????? | | ???????????????????????????????????? | | ???????????????????????????????????? | | ???????????????????????????????????? | | ???????????????????????????????????? | | ???????????????????????????????????? | | ???????????????????????????????????? | | ???????????????????????????????????? | +----------------------------------------------------+ Best States ------------- Heat Dissipation 28 Energy Generation 14 Energy Capacity 265 Matter Stores 300 Matter Capacity 300 Sight Range 16 Terrain Scan Density 10 ECM Strength 1 Additional Mass Support 9 Armor Coverage 150 Evasion (%) 62 Targeting Accuracy 6 Recoil Reduction 2 Offensive Hacking 20 Authchip Count 1 Item Schematics ----------------- None Robot Schematics ------------------ None Fabricated ------------ Nothing Repaired ---------- Nothing Alien Tech Used ----------------- None Achievements -------------- Hunted System Compromised Challenges ------------ None Game ------ Seed VisualCloakingChargecaster Manual? 0 Play Time 00:34:55 Cumulative 3.8 hours Start 2025.06.30 @ 17:36:23 End 2025.06.30 @ 18:10:56 Sessions 1 Manual Loads 0 Difficulty Rogue Special Mode None Game No. 5 Rogue 5 Adventurer 0 Explorer 0 Win Type - Total 0 Types 0/0/0/0/0/0/0/0/0/0 Lore% 2 Gallery% 5 Achievement% 7 Wizard Run 0 Options --------- Layout 1 ASCII 0 Keyboard 0 Movement Mouse Keybinds 0 Fullscreen 2 Font 24/Smallcaps Map View 50x35 Zoom Use 0% Tactical HUD 1 Map Filters NONE Filters NONE Steam 1 RUN: 9f3f4368-292a-4238-b71a-1ba03eddf0b7